[Event "FIDE-Online-Steinitz-Memorial-Women"]
[White "Sebag, Marie"]
[Black "Abdumalik, Zhansaya"]
[Site "Internet"]
[Round "12"]
[Annotator "ChessBase"]
[Result "0-1"]
[Date "2020.05.16"]
[WhiteElo "2482"]
[BlackElo "2409"]
[PlyCount "48"]
[TimeControl "180+2"]

1. e4 e5 2. Nf3 {[%emt 0:0:5]} Nc6 {[%emt 0:0:3]} 3. Bb5 {[%emt 0:0:1]} a6 {[%emt 0:0:1]} 4. Ba4 {[%emt 0:0:1]} Nf6 {[%emt 0:0:1]} 5. 0-0 {[%emt 0:0:1]
} Be7 {[%emt 0:0:1]} 6. Re1 {[%emt 0:0:3]} b5 {[%emt 0:0:1]
} 7. Bb3 {[%emt 0:0:1]} 0-0 {[%emt 0:0:2]} 8. a4 {[%emt 0:0:1]} Bb7 {[%emt 0:0:1]
} 9. d3 {[%emt 0:0:1]} d6 {[%emt 0:0:3]} 10. Nbd2 {[%emt 0:0:0]} Nd7 {[%emt 0:0:9]} 11. c3 {[%emt 0:0:4]} Nc5 {[%emt 0:0:3]} 12. Bc2 {[%emt 0:0:1]} Nxa4 {[%emt 0:0:16]} 13. Bxa4 {[%emt 0:0:2]} bxa4 {[%emt 0:0:1]
} 14. Qxa4 {[%emt 0:0:2]} Rb8 {[%emt 0:0:9]} 15. Nf1 {[%emt 0:0:2]
} f5 {[%emt 0:0:4]} 16. Ne3 {[%emt 0:0:8]} fxe4 {[%emt 0:0:0]} 17. dxe4 {[%emt 0:0:1]} Bf6 {[%emt 0:0:8]} 18. Qc4+ {[%emt 0:0:29]} Kh8 {[%emt 0:0:3]} 19. Nd5 {[%emt 0:0:1]} Qd7 {[%emt 0:0:10]} 20. h3 {[%emt 0:0:8]
} Bd8 {[%emt 0:0:3]} 21. Nd2 {[%emt 0:0:42]} Ne7 {[%emt 0:0:0]} 22. Nxe7 {[%emt 0:0:5]} Qxe7 {[%emt 0:0:8]} 23. Nf1 {[%emt 0:0:4]} Qf7 {[%emt 0:0:20]} 24. Be3 {[%emt 0:0:4]} Qxc4 {[%emt 0:0:2]} 0-1

[Event "FIDE-Online-Steinitz-Memorial-Women"]
[White "Khademalsharieh, Sarasadat"]
[Black "Abdumalik, Zhansaya"]
[Site "Internet"]
[Round "15"]
[Annotator "ChessBase"]
[Result "0-1"]
[Date "2020.05.17"]
[WhiteElo "2431"]
[BlackElo "2409"]
[PlyCount "74"]
[TimeControl "180+2"]

1. d4 Nf6 2. c4 {[%emt 0:0:4]} g6 {[%emt 0:0:4]} 3. g3 {[%emt 0:0:1]} Bg7 {[%emt 0:0:5]} 4. Bg2 {[%emt 0:0:2]} c5 {[%emt 0:0:2]} 5. dxc5 {[%emt 0:0:0]} Qa5+ {[%emt 0:0:6]} 6. Nc3 {[%emt 0:0:1]} Qxc5 {[%emt 0:0:2]} 7. Qa4 {[%emt 0:0:2]} 0-0 {[%emt 0:0:5]} 8. Be3 {[%emt 0:0:18]} Qc7 {[%emt 0:0:0]} 9. Nf3 {[%emt 0:0:13]} Nc6 {[%emt 0:0:4]} 10. 0-0 {[%emt 0:0:7]} d6 {[%emt 0:0:9]} 11. Rac1 {[%emt 0:0:4]} Bd7 {[%emt 0:0:4]} 12. Nd5 {[%emt 0:0:10]
} Qd8 {[%emt 0:0:7]} 13. Qb3 {[%emt 0:0:11]} Rb8 {[%emt 0:0:0]} 14. h3 {[%emt 0:0:4]} e6 {[%emt 0:0:15]} 15. Nxf6+ {[%emt 0:0:9]} Qxf6 {[%emt 0:0:1]} 16. Rc2 {[%emt 0:0:10]} h6 {[%emt 0:0:11]} 17. Rd1 {[%emt 0:0:2]
} e5 {[%emt 0:0:16]} 18. Rcd2 {[%emt 0:0:8]} Be6 {[%emt 0:0:0]} 19. Qc2 {[%emt 0:0:26]} Bf5 {[%emt 0:0:10]} 20. Qc1 {[%emt 0:0:3]} Rfd8 {[%emt 0:0:1]} 21. b3 {[%emt 0:0:1]} Rbc8 {[%emt 0:0:3]} 22. Qa3 {[%emt 0:0:2]
} Bf8 {[%emt 0:0:2]} 23. Qc1 {[%emt 0:0:13]} b5 {[%emt 0:0:0]} 24. g4 {[%emt 0:0:5]} Be6 {[%emt 0:0:15]} 25. g5 {[%emt 0:0:20]} Qe7 {[%emt 0:0:2]
} 26. gxh6 {[%emt 0:0:1]} bxc4 {[%emt 0:0:3]} 27. bxc4 {[%emt 0:0:1]
} Na5 {[%emt 0:0:4]} 28. Ng5 {[%emt 0:0:9]} Nxc4 {[%emt 0:0:0]} 29. h7+ {[%emt 0:0:8]} Kh8 {[%emt 0:0:3]} 30. Nxe6 {[%emt 0:0:5]} Nxd2 {[%emt 0:0:4]} 31. Qxd2 {[%emt 0:0:15]} Qxe6 {[%emt 0:0:3]} 32. Bg5 {[%emt 0:0:4]
} f6 {[%emt 0:0:10]} 33. Bh6 {[%emt 0:0:3]} Kxh7 {[%emt 0:0:0]} 34. Bxf8 {[%emt 0:0:2]} Rxf8 {[%emt 0:0:1]} 35. Kh2 {[%emt 0:0:2]} Rfd8 {[%emt 0:0:3]} 36. Bd5 {[%emt 0:0:1]} Qf5 {[%emt 0:0:2]} 37. e3 {[%emt 0:0:3]
} Rc2 {[%emt 0:0:3]} 0-1

[Event "FIDE-Online-Steinitz-Memorial-Women"]
[White "Paehtz, Elisabeth"]
[Black "Cori T., Deysi"]
[Site "Internet"]
[Round "15"]
[Annotator "ChessBase"]
[Result "0-1"]
[Date "2020.05.17"]
[WhiteElo "2396"]
[BlackElo "2391"]
[PlyCount "82"]
[TimeControl "180+2"]

1. d4 Nf6 2. Nf3 {[%emt 0:0:5]} e6 {[%emt 0:0:5]} 3. Bf4 {[%emt 0:0:1]} b6 {[%emt 0:0:5]} 4. e3 {[%emt 0:0:2]} Bb7 {[%emt 0:0:1]} 5. Bd3 {[%emt 0:0:8]
} c5 {[%emt 0:0:5]} 6. c3 {[%emt 0:0:7]} Be7 {[%emt 0:0:11]} 7. Nbd2 {[%emt 0:0:2]} 0-0 {[%emt 0:0:3]} 8. h3 {[%emt 0:0:3]} h6 {[%emt 0:0:9]
} 9. 0-0 {[%emt 0:0:2]} Nc6 {[%emt 0:0:5]} 10. Qe2 {[%emt 0:0:0]} Rc8 {[%emt 0:0:4]} 11. Bh2 {[%emt 0:0:3]} d6 {[%emt 0:0:8]} 12. a3 {[%emt 0:0:2]} Re8 {[%emt 0:0:2]} 13. Rfe1 {[%emt 0:0:3]} Bf8 {[%emt 0:0:2]
} 14. e4 {[%emt 0:0:3]} cxd4 {[%emt 0:0:11]} 15. cxd4 {[%emt 0:0:1]
} e5 {[%emt 0:0:28]} 16. d5 {[%emt 0:0:2]} Nd4 {[%emt 0:0:1]
} 17. Nxd4 {[%emt 0:0:2]} exd4 {[%emt 0:0:0]} 18. Qd1 {[%emt 0:0:3]} Nd7 {[%emt 0:0:3]} 19. Bf1 {[%emt 0:0:13]} Qf6 {[%emt 0:0:7]} 20. Qa4 {[%emt 0:0:13]
} Nc5 {[%emt 0:0:7]} 21. Qxa7 {[%emt 0:0:6]} Qd8 {[%emt 0:0:0]} 22. Nc4 {[%emt 0:0:8]} b5 {[%emt 0:0:23]} 23. Na5 {[%emt 0:0:14]} Re7 {[%emt 0:0:29]} 24. b4 {[%emt 0:0:29]} Ra8 {[%emt 0:0:7]} 25. Nxb7 {[%emt 0:0:3]
} Rxb7 {[%emt 0:0:2]} 26. Qxa8 {[%emt 0:0:3]} Qxa8 {[%emt 0:0:0]} 27. bxc5 {[%emt 0:0:1]} dxc5 {[%emt 0:0:1]} 28. e5 {[%emt 0:0:15]} c4 {[%emt 0:0:4]} 29. g3 {[%emt 0:0:3]} d3 {[%emt 0:0:3]} 30. Bg2 {[%emt 0:0:2]
} Qa5 {[%emt 0:0:7]} 31. d6 {[%emt 0:0:2]} Ra7 {[%emt 0:0:0]} 32. Bd5 {[%emt 0:0:7]} d2 {[%emt 0:0:3]} 33. Re2 {[%emt 0:0:7]} Qxa3 {[%emt 0:0:4]} 34. Rd1 {[%emt 0:0:6]} c3 {[%emt 0:0:1]} 35. Be4 {[%emt 0:0:0]} Qb3 {[%emt 0:0:5]} 36. Rdxd2 {[%emt 0:0:6]} cxd2 {[%emt 0:0:2]} 37. Rxd2 {[%emt 0:0:1]} Ra1+ {[%emt 0:0:2]} 38. Kg2 {[%emt 0:0:1]} Qc4 {[%emt 0:0:1]
} 39. Bd3 {[%emt 0:0:4]} Qd5+ {[%emt 0:0:3]} 40. f3 {[%emt 0:0:0]} Qxe5 {[%emt 0:0:7]} 41. g4 {[%emt 0:0:2]} Qe3 {[%emt 0:0:1]} 0-1

[Event "FIDE-Online-Steinitz-Memorial-Women"]
[White "Kosteniuk, Alexandra"]
[Black "Tan, Zhongyi"]
[Site "Internet"]
[Round "16"]
[Annotator "RC"]
[Result "1-0"]
[Date "2020.05.17"]
[WhiteElo "2521"]
[BlackElo "2510"]
[PlyCount "87"]
[TimeControl "180+2"]

1. e4 e5 2. Nf3 {[%emt 0:0:4]} Nc6 {[%emt 0:0:4]} 3. Bb5 {[%emt 0:0:1]} Nf6 {[%emt 0:0:1]} 4. d4 {[%emt 0:0:2]} exd4 {[%emt 0:0:31]} 5. 0-0 {[%emt 0:0:3]
} Be7 {[%emt 0:0:21]} 6. e5 {[%emt 0:0:2]} Ne4 {[%emt 0:0:2]
} 7. Re1 {[%emt 0:0:1]} Nc5 {[%emt 0:0:2]} 8. c3 {[%emt 0:0:0]} dxc3 {[%emt 0:0:5]
} 9. Nxc3 {[%emt 0:0:6]} 0-0 {[%emt 0:0:4]} 10. Nd5 {[%emt 0:0:0]} Ne6 {[%emt 0:0:5]} 11. Bd2 {[%emt 0:0:3]} Bc5 {[%emt 0:0:8]} 12. Bc3 {[%emt 0:0:24]} Ne7 {[%emt 0:0:10]} 13. Ne3 {[%emt 0:0:37]} d5 {[%emt 0:0:0]} 14. exd6 {[%emt 0:0:3]} Qxd6 {[%emt 0:0:5]} 15. Qc2 {[%emt 0:0:2]
} Qb6 {[%emt 0:0:12]} 16. Bd3 {[%emt 0:0:7]} Ng6 {[%emt 0:0:4]} 17. Nc4 {[%emt 0:0:17]
} Qc6 {[%emt 0:0:7]} 18. Be4 {[%emt 0:0:9]} Qb5 {[%emt 0:0:0]} 19. b3 {[%emt 0:0:1]} Bb4 {[%emt 0:0:9]} 20. Bxb4 {[%emt 0:0:33]} Qxb4 {[%emt 0:0:2]} 21. h4 {[%emt 0:0:1]} Rd8 {[%emt 0:0:28]} 22. h5 {[%emt 0:0:3]
} Ngf8 {[%emt 0:0:1]} 23. Rad1 {[%emt 0:0:10]} Bd7 {[%emt 0:0:0]} 24. a3 {[%emt 0:0:15]} Qe7 {[%emt 0:0:15]} 25. Bxb7 {[%emt 0:0:2]} Rab8 {[%emt 0:0:1]} 26. Be4 {[%emt 0:0:6]} Qf6 {[%emt 0:0:5]} 27. Rd5 {[%emt 0:0:2]
} Nf4 {[%emt 0:0:10]} 28. Ra5 {[%emt 0:0:11]} a6 {[%emt 0:0:0]} 29. g3 {[%emt 0:0:3]} Nh3+ {[%emt 0:0:3]} 30. Kg2 {[%emt 0:0:1]} h6 {[%emt 0:0:2]} 31. Nce5 {[%emt 0:0:3]} Ng5 {[%emt 0:0:3]} 32. Nxd7 {[%emt 0:0:4]
} Nxd7 {[%emt 0:0:2]} 33. Rf5 {[%emt 0:0:1]} Qe7 {[%emt 0:0:0]} 34. Bd5 {[%emt 0:0:4]} Qd6 {[%emt 0:0:4]} 35. Nxg5 {[%emt 0:0:1]} hxg5 {[%emt 0:0:1]} 36. Bxf7+ {[%emt 0:0:1]} Kh8 {[%emt 0:0:1]} 37. Rxg5 {[%emt 0:0:4]} Qf6 {[%emt 0:0:2]} 38. Rf5 {[%emt 0:0:3]} Qh6 {[%emt 0:0:0]} 39. Re6 {[%emt 0:0:2]} Nf6 {[%emt 0:0:1]} 40. Bg6 {[%emt 0:0:6]} Rd2 {[%emt 0:0:3]} 41. Qxc7 {[%emt 0:0:1]} Rbd8 {[%emt 0:0:2]} 42. Rexf6 {[%emt 0:0:2]
} gxf6 {[%emt 0:0:1]} 43. Rxf6 {[%emt 0:0:0]} Qg7 {[%emt 0:0:0]} 44. Rf7 {[%emt 0:0:1]} 1-0

[Event "FIDE-Online-Steinitz-Memorial-Women"]
[White "Stefanova, Antoaneta"]
[Black "Lagno, Kateryna"]
[Site "Internet"]
[Round "16"]
[Annotator "RC"]
[Result "0-1"]
[Date "2020.05.17"]
[WhiteElo "2485"]
[BlackElo "2608"]
[PlyCount "78"]
[TimeControl "180+2"]

1. d4 Nf6 2. Nf3 {[%emt 0:0:4]} g6 {[%emt 0:0:4]} 3. g3 {[%emt 0:0:1]} Bg7 {[%emt 0:0:1]} 4. Bg2 {[%emt 0:0:1]} 0-0 {[%emt 0:0:2]} 5. 0-0 {[%emt 0:0:1]
} d5 {[%emt 0:0:1]} 6. Bf4 {[%emt 0:0:2]} Bf5 {[%emt 0:0:21]
} 7. Qc1 {[%emt 0:0:4]} Nbd7 {[%emt 0:0:8]} 8. c4 {[%emt 0:0:10]} c6 {[%emt 0:0:1]
} 9. h3 {[%emt 0:0:13]} a5 {[%emt 0:0:11]} 10. Nbd2 {[%emt 0:0:0]} Ne4 {[%emt 0:0:18]} 11. Rd1 {[%emt 0:0:14]} a4 {[%emt 0:0:6]} 12. Nh4 {[%emt 0:0:20]} Nxd2 {[%emt 0:0:34]} 13. Qxd2 {[%emt 0:0:3]} Be6 {[%emt 0:0:7]
} 14. cxd5 {[%emt 0:0:2]} cxd5 {[%emt 0:0:0]} 15. Rac1 {[%emt 0:0:3]
} Qb6 {[%emt 0:0:5]} 16. Nf3 {[%emt 0:0:13]} Nf6 {[%emt 0:0:0]} 17. Bc7 {[%emt 0:0:11]} Qa6 {[%emt 0:0:3]} 18. Bf1 {[%emt 0:0:4]} Ne4 {[%emt 0:0:4]} 19. Qb4 {[%emt 0:0:2]} b6 {[%emt 0:0:19]} 20. Qxe7 {[%emt 0:0:29]
} Rfe8 {[%emt 0:0:14]} 21. Qb4 {[%emt 0:0:4]} Bf8 {[%emt 0:0:0]} 22. Qxb6 {[%emt 0:0:21]} Qxb6 {[%emt 0:0:1]} 23. Bxb6 {[%emt 0:0:2]} Rab8 {[%emt 0:0:0]} 24. Bc5 {[%emt 0:0:2]} Nxc5 {[%emt 0:0:7]} 25. dxc5 {[%emt 0:0:2]
} Rxb2 {[%emt 0:0:1]} 26. Nd4 {[%emt 0:0:26]} Rxa2 {[%emt 0:0:0]} 27. e3 {[%emt 0:0:9]} Rb2 {[%emt 0:0:7]} 28. Bb5 {[%emt 0:0:6]} Ra8 {[%emt 0:0:5]} 29. c6 {[%emt 0:0:4]} Bc8 {[%emt 0:0:4]} 30. c7 {[%emt 0:0:2]
} a3 {[%emt 0:0:1]} 31. Bc6 {[%emt 0:0:2]} Ra5 {[%emt 0:0:0]} 32. Ra1 {[%emt 0:0:3]} a2 {[%emt 0:0:2]} 33. Ne2 {[%emt 0:0:3]} Bg7 {[%emt 0:0:3]} 34. Nd4 {[%emt 0:0:2]} Rc5 {[%emt 0:0:6]} 35. Ba8 {[%emt 0:0:7]
} Bxh3 {[%emt 0:0:14]} 36. Nc6 {[%emt 0:0:8]} Kf8 {[%emt 0:0:0]} 37. Na7 {[%emt 0:0:2]} Rxc7 {[%emt 0:0:2]} 38. Nc6 {[%emt 0:0:1]} Rc8 {[%emt 0:0:2]} 39. Nd4 {[%emt 0:0:2]} Rxa8 {[%emt 0:0:2]} 0-1

[Event "FIDE-Online-Steinitz-Memorial-Women"]
[White "Sebag, Marie"]
[Black "Paehtz, Elisabeth"]
[Site "Internet"]
[Round "16"]
[Annotator "RC"]
[Result "1-0"]
[Date "2020.05.17"]
[WhiteElo "2482"]
[BlackElo "2396"]
[PlyCount "103"]
[TimeControl "180+2"]

1. e4 c5 2. Nf3 {[%emt 0:0:4]} d6 {[%emt 0:0:3]} 3. Bb5+ {[%emt 0:0:2]} Nd7 {[%emt 0:0:3]} 4. 0-0 {[%emt 0:0:1]} a6 {[%emt 0:0:1]} 5. Bd3 {[%emt 0:0:1]
} Ngf6 {[%emt 0:0:2]} 6. c3 {[%emt 0:0:8]} Ne5 {[%emt 0:0:0]} 7. Be2 {[%emt 0:0:14]} Nxf3+ {[%emt 0:0:3]} 8. Bxf3 {[%emt 0:0:2]} g6 {[%emt 0:0:3]} 9. d4 {[%emt 0:0:1]} Bg7 {[%emt 0:0:2]} 10. dxc5 {[%emt 0:0:0]} dxc5 {[%emt 0:0:1]} 11. Qxd8+ {[%emt 0:0:2]} Kxd8 {[%emt 0:0:0]} 12. Rd1+ {[%emt 0:0:2]} Nd7 {[%emt 0:0:2]} 13. Be3 {[%emt 0:0:2]} Kc7 {[%emt 0:0:2]
} 14. Nd2 {[%emt 0:0:2]} b6 {[%emt 0:0:13]} 15. a4 {[%emt 0:0:0]} Bb7 {[%emt 0:0:3]} 16. Be2 {[%emt 0:0:3]} Rhd8 {[%emt 0:0:12]} 17. f3 {[%emt 0:0:5]} Ne5 {[%emt 0:0:2]} 18. a5 {[%emt 0:0:5]} Nd3 {[%emt 0:0:0]} 19. axb6+ {[%emt 0:0:4]} Kc6 {[%emt 0:0:4]} 20. Nc4 {[%emt 0:0:13]
} Ne5 {[%emt 0:0:2]} 21. Rxd8 {[%emt 0:0:7]} Rxd8 {[%emt 0:0:5]} 22. Na5+ {[%emt 0:0:3]} Kxb6 {[%emt 0:0:1]} 23. Nxb7 {[%emt 0:0:1]} Kxb7 {[%emt 0:0:0]} 24. Bxa6+ {[%emt 0:0:10]} Kc6 {[%emt 0:0:2]} 25. Be2 {[%emt 0:0:8]
} Nd3 {[%emt 0:0:2]} 26. Rd1 {[%emt 0:0:11]} c4 {[%emt 0:0:4]} 27. Kf1 {[%emt 0:0:34]
} Rd6 {[%emt 0:0:4]} 28. Bxd3 {[%emt 0:0:2]} cxd3 {[%emt 0:0:0]} 29. Ke1 {[%emt 0:0:3]} f5 {[%emt 0:0:2]} 30. Kd2 {[%emt 0:0:4]} fxe4 {[%emt 0:0:3]} 31. fxe4 {[%emt 0:0:1]} Be5 {[%emt 0:0:0]} 32. g3 {[%emt 0:0:5]
} Kb5 {[%emt 0:0:4]} 33. b3 {[%emt 0:0:23]} Rc6 {[%emt 0:0:0]} 34. Bd4 {[%emt 0:0:16]} Bxd4 {[%emt 0:0:2]} 35. cxd4 {[%emt 0:0:1]} Kb4 {[%emt 0:0:1]} 36. Kxd3 {[%emt 0:0:3]} Rc3+ {[%emt 0:0:7]} 37. Ke2 {[%emt 0:0:1]
} Rxb3 {[%emt 0:0:6]} 38. Rc1 {[%emt 0:0:4]} Rb2+ {[%emt 0:0:0]} 39. Ke3 {[%emt 0:0:2]} Rxh2 {[%emt 0:0:4]} 40. Rc7 {[%emt 0:0:1]} Rg2 {[%emt 0:0:8]} 41. Kf3 {[%emt 0:0:4]} Rd2 {[%emt 0:0:2]} 42. d5 {[%emt 0:0:1]
} Rd3+ {[%emt 0:0:8]} 43. Kf4 {[%emt 0:0:2]} g5+ {[%emt 0:0:0]} 44. Kxg5 {[%emt 0:0:3]} Rxg3+ {[%emt 0:0:2]} 45. Kf4 {[%emt 0:0:2]} Rg7 {[%emt 0:0:3]} 46. d6 {[%emt 0:0:1]} Rf7+ {[%emt 0:0:4]} 47. Kg5 {[%emt 0:0:6]
} Rg7+ {[%emt 0:0:4]} 48. Kh5 {[%emt 0:0:5]} Rg6 {[%emt 0:0:0]} 49. dxe7 {[%emt 0:0:9]} Re6 {[%emt 0:0:2]} 50. Kg5 {[%emt 0:0:0]} Rxe4 {[%emt 0:0:8]} 51. Kf6 {[%emt 0:0:1]} h5 {[%emt 0:0:2]} 52. Rc8 {[%emt 0:0:3]
} 1-0

[Event "FIDE-Online-Steinitz-Memorial-Women"]
[White "Abdumalik, Zhansaya"]
[Black "Lei, Tingjie"]
[Site "Internet"]
[Round "16"]
[Annotator "RC"]
[Result "1/2-1/2"]
[Date "2020.05.17"]
[WhiteElo "2409"]
[BlackElo "2530"]
[PlyCount "130"]
[TimeControl "180+2"]

1. e4 c5 2. Nf3 {[%emt 0:0:4]} d6 {[%emt 0:0:3]} 3. d4 {[%emt 0:0:2]} cxd4 {[%emt 0:0:1]} 4. Nxd4 {[%emt 0:0:1]} Nf6 {[%emt 0:0:1]} 5. Nc3 {[%emt 0:0:1]
} a6 {[%emt 0:0:1]} 6. g3 {[%emt 0:0:1]} g6 {[%emt 0:0:2]} 7. Bg2 {[%emt 0:0:2]} Bg7 {[%emt 0:0:1]} 8. 0-0 {[%emt 0:0:2]} 0-0 {[%emt 0:0:1]
} 9. h3 {[%emt 0:0:2]} Qc7 {[%emt 0:0:2]} 10. a4 {[%emt 0:0:0]} Nc6 {[%emt 0:0:2]} 11. Nde2 {[%emt 0:0:6]} b6 {[%emt 0:0:8]} 12. g4 {[%emt 0:0:8]} Bb7 {[%emt 0:0:4]} 13. Ng3 {[%emt 0:0:2]} Ne5 {[%emt 0:0:0]} 14. g5 {[%emt 0:0:15]} Nfd7 {[%emt 0:0:1]} 15. Nd5 {[%emt 0:0:1]} Qd8 {[%emt 0:0:6]} 16. Rb1 {[%emt 0:0:16]} e6 {[%emt 0:0:32]} 17. Ne3 {[%emt 0:0:0]} Nc5 {[%emt 0:0:1]} 18. f4 {[%emt 0:0:8]} Nc6 {[%emt 0:0:4]} 19. c3 {[%emt 0:0:5]} a5 {[%emt 0:0:9]} 20. Ng4 {[%emt 0:0:10]} Ba6 {[%emt 0:0:0]} 21. Rf3 {[%emt 0:0:2]} d5 {[%emt 0:0:46]} 22. e5 {[%emt 0:0:14]} Ne4 {[%emt 0:0:10]} 23. Nf6+ {[%emt 0:0:7]} Kh8 {[%emt 0:0:15]} 24. Be3 {[%emt 0:0:12]
} Ne7 {[%emt 0:0:6]} 25. h4 {[%emt 0:0:19]} Nxg3 {[%emt 0:0:0]} 26. Rxg3 {[%emt 0:0:2]} Bxf6 {[%emt 0:0:9]} 27. exf6 {[%emt 0:0:20]} Nf5 {[%emt 0:0:1]} 28. Rh3 {[%emt 0:0:1]} h5 {[%emt 0:0:6]} 29. Bd4 {[%emt 0:0:14]
} Qc7 {[%emt 0:0:8]} 30. Be5 {[%emt 0:0:20]} Qc5+ {[%emt 0:0:0]} 31. Kh1 {[%emt 0:0:3]} Ne3 {[%emt 0:0:6]} 32. Qd4 {[%emt 0:0:2]} Nxg2 {[%emt 0:0:3]} 33. Kxg2 {[%emt 0:0:1]} Rfc8 {[%emt 0:0:2]} 34. Rd1 {[%emt 0:0:8]
} b5 {[%emt 0:0:4]} 35. axb5 {[%emt 0:0:8]} Qxb5 {[%emt 0:0:0]} 36. Qf2 {[%emt 0:0:3]} Rc4 {[%emt 0:0:3]} 37. Rhh1 {[%emt 0:0:4]} Bb7 {[%emt 0:0:7]} 38. Bd4 {[%emt 0:0:1]} Bc6 {[%emt 0:0:2]} 39. Rd2 {[%emt 0:0:2]
} Rb8 {[%emt 0:0:1]} 40. Re1 {[%emt 0:0:3]} Ra4 {[%emt 0:0:0]} 41. Kg3 {[%emt 0:0:4]} Ra2 {[%emt 0:0:2]} 42. Ree2 {[%emt 0:0:3]} Qc4 {[%emt 0:0:3]} 43. Qe3 {[%emt 0:0:3]} a4 {[%emt 0:0:2]} 44. Kh3 {[%emt 0:0:4]
} Ra1 {[%emt 0:0:4]} 45. Re1 {[%emt 0:0:2]} Rxe1 {[%emt 0:0:0]} 46. Qxe1 {[%emt 0:0:1]} Qa2 {[%emt 0:0:2]} 47. Qf2 {[%emt 0:0:2]} Qc4 {[%emt 0:0:1]} 48. Qe1 {[%emt 0:0:2]} Ra8 {[%emt 0:0:3]} 49. Kg3 {[%emt 0:0:2]
} a3 {[%emt 0:0:1]} 50. bxa3 {[%emt 0:0:1]} Rxa3 {[%emt 0:0:0]} 51. Kh2 {[%emt 0:0:4]} Bb5 {[%emt 0:0:6]} 52. Qc1 {[%emt 0:0:3]} Ra2 {[%emt 0:0:3]} 53. Rxa2 {[%emt 0:0:3]} Qxa2+ {[%emt 0:0:2]} 54. Kh3 {[%emt 0:0:2]
} Bd3 {[%emt 0:0:5]} 55. Qe1 {[%emt 0:0:6]} Be4 {[%emt 0:0:0]} 56. Qf2 {[%emt 0:0:2]} Qb1 {[%emt 0:0:1]} 57. Qg1 {[%emt 0:0:1]} Qd3+ {[%emt 0:0:2]} 58. Kh2 {[%emt 0:0:2]} Qe2+ {[%emt 0:0:2]} 59. Qf2 {[%emt 0:0:1]
} Qd1 {[%emt 0:0:1]} 60. Qg1 {[%emt 0:0:1]} Qf3 {[%emt 0:0:0]} 61. Qf2 {[%emt 0:0:2]} Qh1+ {[%emt 0:0:2]} 62. Kg3 {[%emt 0:0:1]} Qc1 {[%emt 0:0:1]} 63. Kh2 {[%emt 0:0:1]} Qd1 {[%emt 0:0:2]} 64. Kg3 {[%emt 0:0:2]
} Qg4+ {[%emt 0:0:3]} 65. Kh2 {[%emt 0:0:1]} Qd1 {[%emt 0:0:0]} 1/2-1/2

[Event "FIDE-Online-Steinitz-Memorial-Women"]
[White "Cori T., Deysi"]
[Black "Khademalsharieh, Sarasadat"]
[Site "Internet"]
[Round "16"]
[Annotator "RC"]
[Result "0-1"]
[Date "2020.05.17"]
[WhiteElo "2391"]
[BlackElo "2431"]
[PlyCount "78"]
[TimeControl "180+2"]

1. d4 Nf6 2. Nf3 {[%emt 0:0:4]} d5 {[%emt 0:0:5]} 3. c4 {[%emt 0:0:2]} e6 {[%emt 0:0:2]} 4. e3 {[%emt 0:0:3]} a6 {[%emt 0:0:2]} 5. Nbd2 {[%emt 0:0:0]} c5 {[%emt 0:0:3]} 6. cxd5 {[%emt 0:0:3]} Nxd5 {[%emt 0:0:1]} 7. Be2 {[%emt 0:0:7]} Nc6 {[%emt 0:0:1]} 8. 0-0 {[%emt 0:0:2]} cxd4 {[%emt 0:0:1]
} 9. exd4 {[%emt 0:0:1]} Be7 {[%emt 0:0:3]} 10. Ne4 {[%emt 0:0:0]} 0-0 {[%emt 0:0:2]} 11. a3 {[%emt 0:0:1]} b6 {[%emt 0:0:6]} 12. Qb3 {[%emt 0:0:21]} Bb7 {[%emt 0:0:6]} 13. Rd1 {[%emt 0:0:8]} Rc8 {[%emt 0:0:2]
} 14. Qa2 {[%emt 0:0:6]} Bf6 {[%emt 0:0:9]} 15. Nxf6+ {[%emt 0:0:11]
} Qxf6 {[%emt 0:0:2]} 16. Bg5 {[%emt 0:0:6]} Qg6 {[%emt 0:0:0]} 17. Qb1 {[%emt 0:0:25]} f5 {[%emt 0:0:36]} 18. Qd3 {[%emt 0:0:41]} h6 {[%emt 0:0:2]
} 19. Bd2 {[%emt 0:0:2]} Rfd8 {[%emt 0:0:19]} 20. Rac1 {[%emt 0:0:1]
} Qf6 {[%emt 0:0:5]} 21. Qb3 {[%emt 0:0:29]} b5 {[%emt 0:0:0]} 22. h3 {[%emt 0:0:12]} Nb6 {[%emt 0:0:5]} 23. Bc3 {[%emt 0:0:8]} Nd5 {[%emt 0:0:2]} 24. Bd2 {[%emt 0:0:3]} Rc7 {[%emt 0:0:10]} 25. Qa2 {[%emt 0:0:10]
} Rcd7 {[%emt 0:0:2]} 26. Qb1 {[%emt 0:0:3]} Nb6 {[%emt 0:0:0]} 27. Be3 {[%emt 0:0:2]} f4 {[%emt 0:0:9]} 28. Bd2 {[%emt 0:0:1]} Nxd4 {[%emt 0:0:1]} 29. Nxd4 {[%emt 0:0:2]} Rxd4 {[%emt 0:0:4]} 30. Bc3 {[%emt 0:0:1]
} Qg5 {[%emt 0:0:4]} 31. f3 {[%emt 0:0:5]} Rxd1+ {[%emt 0:0:0]} 32. Rxd1 {[%emt 0:0:1]} Nd5 {[%emt 0:0:4]} 33. Ba5 {[%emt 0:0:2]} Re8 {[%emt 0:0:3]} 34. Bb6 {[%emt 0:0:3]} Nxb6 {[%emt 0:0:6]} 35. Rd6 {[%emt 0:0:3]
} Nd5 {[%emt 0:0:2]} 36. Rd7 {[%emt 0:0:4]} Ne3 {[%emt 0:0:0]} 37. Bf1 {[%emt 0:0:3]} Bxf3 {[%emt 0:0:2]} 38. h4 {[%emt 0:0:6]} Qg3 {[%emt 0:0:3]} 39. Qd3 {[%emt 0:0:6]} Bxg2 {[%emt 0:0:4]} 0-1

[Event "FIDE-Online-Steinitz-Memorial-Women"]
[White "Tan, Zhongyi"]
[Black "Abdumalik, Zhansaya"]
[Site "Internet"]
[Round "17"]
[Annotator "RC"]
[Result "1-0"]
[Date "2020.05.17"]
[WhiteElo "2510"]
[BlackElo "2409"]
[PlyCount "147"]
[TimeControl "180+2"]

1. d4 Nf6 2. c4 {[%emt 0:0:4]} g6 {[%emt 0:0:4]} 3. Nc3 {[%emt 0:0:1]} d5 {[%emt 0:0:3]} 4. cxd5 {[%emt 0:0:2]} Nxd5 {[%emt 0:0:1]} 5. g3 {[%emt 0:0:0]} Bg7 {[%emt 0:0:4]} 6. Bg2 {[%emt 0:0:1]} Nb6 {[%emt 0:0:1]} 7. Nf3 {[%emt 0:0:2]} 0-0 {[%emt 0:0:4]} 8. 0-0 {[%emt 0:0:2]} N8d7 {[%emt 0:0:4]
} 9. e4 {[%emt 0:0:4]} e5 {[%emt 0:0:4]} 10. d5 {[%emt 0:0:0]} Nc4 {[%emt 0:0:7]} 11. b3 {[%emt 0:0:3]} Nd6 {[%emt 0:0:1]} 12. Ba3 {[%emt 0:0:2]} a6 {[%emt 0:0:4]} 13. Nd2 {[%emt 0:0:2]} f5 {[%emt 0:0:0]} 14. Nc4 {[%emt 0:0:3]} Qf6 {[%emt 0:0:3]} 15. Nxd6 {[%emt 0:0:5]} cxd6 {[%emt 0:0:2]} 16. Rc1 {[%emt 0:0:2]} f4 {[%emt 0:0:12]} 17. Na4 {[%emt 0:0:15]
} Rb8 {[%emt 0:0:22]} 18. Rc7 {[%emt 0:0:3]} b5 {[%emt 0:0:0]} 19. Bh3 {[%emt 0:0:7]} Rd8 {[%emt 0:0:12]} 20. Rc6 {[%emt 0:0:15]} bxa4 {[%emt 0:0:21]} 21. Bxd6 {[%emt 0:0:8]} Bb7 {[%emt 0:0:9]} 22. Bxb8 {[%emt 0:0:14]
} Bxc6 {[%emt 0:0:4]} 23. dxc6 {[%emt 0:0:1]} Qxc6 {[%emt 0:0:0]} 24. Qd6 {[%emt 0:0:24]} Qxd6 {[%emt 0:0:20]} 25. Bxd6 {[%emt 0:0:0]
} axb3 {[%emt 0:0:4]} 26. Be6+ {[%emt 0:0:8]} Kh8 {[%emt 0:0:2]} 27. Bxb3 {[%emt 0:0:2]} Nb8 {[%emt 0:0:7]} 28. Be7 {[%emt 0:0:13]} Re8 {[%emt 0:0:0]} 29. Rc1 {[%emt 0:0:6]} Nd7 {[%emt 0:0:12]} 30. Bd6 {[%emt 0:0:6]} fxg3 {[%emt 0:0:9]} 31. hxg3 {[%emt 0:0:0]} Nf6 {[%emt 0:0:4]} 32. f3 {[%emt 0:0:5]
} Nh5 {[%emt 0:0:12]} 33. Kg2 {[%emt 0:0:7]} Rd8 {[%emt 0:0:0]} 34. Rc6 {[%emt 0:0:3]} a5 {[%emt 0:0:9]} 35. Ra6 {[%emt 0:0:2]} h6 {[%emt 0:0:6]
} 36. Bd5 {[%emt 0:0:4]} Nf6 {[%emt 0:0:3]} 37. Bb3 {[%emt 0:0:0]} Ne8 {[%emt 0:0:2]} 38. Bc5 {[%emt 0:0:3]} Rd2+ {[%emt 0:0:2]} 39. Kf1 {[%emt 0:0:1]} Nf6 {[%emt 0:0:3]} 40. Rxa5 {[%emt 0:0:4]} g5 {[%emt 0:0:1]
} 41. g4 {[%emt 0:0:2]} h5 {[%emt 0:0:2]} 42. Be6 {[%emt 0:0:0]} hxg4 {[%emt 0:0:1]} 43. fxg4 {[%emt 0:0:1]} Kh7 {[%emt 0:0:3]} 44. Bf5+ {[%emt 0:0:2]} Kh6 {[%emt 0:0:1]} 45. Ra6 {[%emt 0:0:3]} Rd1+ {[%emt 0:0:4]
} 46. Ke2 {[%emt 0:0:1]} Ra1 {[%emt 0:0:14]} 47. Be7 {[%emt 0:0:0]} Bh8 {[%emt 0:0:5]} 48. Bxf6 {[%emt 0:0:3]} Bxf6 {[%emt 0:0:0]} 49. Rxf6+ {[%emt 0:0:2]} Kg7 {[%emt 0:0:0]} 50. Ra6 {[%emt 0:0:1]} Kf7 {[%emt 0:0:1]
} 51. Kd3 {[%emt 0:0:1]} Rc1 {[%emt 0:0:2]} 52. a4 {[%emt 0:0:0]} Ke7 {[%emt 0:0:1]} 53. a5 {[%emt 0:0:1]} Kd8 {[%emt 0:0:2]} 54. Rd6+ {[%emt 0:0:2]} Kc7 {[%emt 0:0:1]} 55. Re6 {[%emt 0:0:1]} Rd1+ {[%emt 0:0:2]
} 56. Kc4 {[%emt 0:0:2]} Rc1+ {[%emt 0:0:2]} 57. Kd5 {[%emt 0:0:1]
} Ra1 {[%emt 0:0:1]} 58. a6 {[%emt 0:0:2]} Ra5+ {[%emt 0:0:0]} 59. Kc4 {[%emt 0:0:1]} Kb8 {[%emt 0:0:3]} 60. Kb4 {[%emt 0:0:2]} Ra1 {[%emt 0:0:2]} 61. Kb5 {[%emt 0:0:4]} Rb1+ {[%emt 0:0:2]} 62. Kc6 {[%emt 0:0:1]
} Rd1 {[%emt 0:0:1]} 63. Rxe5 {[%emt 0:0:2]} Ka7 {[%emt 0:0:0]} 64. Bc8 {[%emt 0:0:11]} Rc1+ {[%emt 0:0:2]} 65. Kd7 {[%emt 0:0:2]} Re1 {[%emt 0:0:1]} 66. Bb7 {[%emt 0:0:5]} Rg1 {[%emt 0:0:3]} 67. Rxg5 {[%emt 0:0:3]
} Rd1+ {[%emt 0:0:0]} 68. Ke7 {[%emt 0:0:2]} Re1 {[%emt 0:0:0]} 69. e5 {[%emt 0:0:1]} Rh1 {[%emt 0:0:3]} 70. e6 {[%emt 0:0:2]} Rh7+ {[%emt 0:0:1]} 71. Kf6 {[%emt 0:0:1]} Rh6+ {[%emt 0:0:1]} 72. Rg6 {[%emt 0:0:1]
} Rh2 {[%emt 0:0:2]} 73. e7 {[%emt 0:0:2]} Re2 {[%emt 0:0:0]} 74. Kf7 {[%emt 0:0:1]} 1-0